fUSD/lending_fUSD_20251105
["ID","MTS","AMOUNT","RATE_DAILY","PERIOD"]
[393225669,1762348242037,-1022.62760399,0.0001764,2]
[393225670,1762348242046,-1072.1405935,0.0001764,2]
[393225671,1762348242055,-1074.08987397,0.0001764,2]
[393225672,1762348242065,-1060.65211616,0.0001764,2]
[393225673,1762348242074,-1027.05700669,0.0001764,2]
[393225674,1762348242083,-1047.87622262,0.0001764,2]
[393225675,1762348242092,-1088.25688694,0.0001764,2]
[393225676,1762348242101,-1049.70637428,0.0001764,2]
[393225677,1762348242111,-1031.05691786,0.0001764,2]
[393225678,1762348242120,-1138.96383641,0.0001764,2]
[393225679,1762348242129,-1009.90886447,0.0001764,2]
[393225680,1762348242138,-1125.99059344,0.0001764,2]
[393225681,1762348242147,-1071.03616358,0.0001764,2]
[393225682,1762348242157,-1003.23697393,0.0001764,2]
[393225683,1762348242166,-2500.0,0.00017645,3]
[393225684,1762348242175,-2500.0,0.00017654,3]
[393225685,1762348242185,-5002.27644664,0.00017661,2]
[393225686,1762348242194,-175.40956515,0.00017661,2]
[393225687,1762348242203,-3689.60851884,0.00017661,2]
[393225688,1762348242213,-2500.0,0.00017662,3]
[393225689,1762348242222,-1000.0,0.00017669,2]
[393225690,1762348242232,-4662.8474169,0.0001767,2]
[393225691,1762348242242,-2500.0,0.00017671,3]
[393225692,1762348242251,-2500.0,0.0001768,3]
[393225693,1762348242260,-2500.0,0.00017689,3]
[393225694,1762348242269,-165.04661382,0.00017695,2]
[393225695,1762348242279,-2500.0,0.00017698,3]
[393225696,1762348242288,-2500.0,0.00017706,3]
[393225697,1762348242301,-2500.0,0.00017715,3]
[393225698,1762348242311,-2500.0,0.00017724,3]
[393225699,1762348242320,-1618.40243873,0.00017726,2]
[393225700,1762348242330,-2500.0,0.00017733,3]
[393225701,1762348242339,-5002.27644664,0.00017741,2]
[393225702,1762348242349,-175.40956515,0.00017741,2]
[393225703,1762348242358,-2500.0,0.00017742,3]
[393225704,1762348242368,-162.12037659,0.00017742,2]
[393225705,1762348242377,-150.0,0.0001775,2]
[393225706,1762348242387,-2500.0,0.0001775,3]
[393225707,1762348242396,-893.58488772,0.00017751,2]
[393225708,1762348242406,-150.0,0.00017753,2]
[393225709,1762348242415,-2500.0,0.00017759,3]
[393225710,1762348242424,-2500.0,0.00017768,3]
[393225711,1762348242433,-607.18632361,0.00017771,2]
[393225712,1762348242442,-2500.0,0.00017777,3]
[393225713,1762348242451,-150.0,0.00017781,2]
[393225714,1762348242460,-150.0,0.00017781,2]
[393225715,1762348242470,-150.0,0.00017781,2]
[393225716,1762348242479,-2500.0,0.00017786,3]
[393225717,1762348242489,-2500.0,0.00017794,3]
[393225718,1762348242498,-165.04661382,0.00017798,2]
[393225719,1762348242507,-150.0,0.000178,2]
[393225720,1762348242516,-5052.6671066,0.000178,2]
[393225721,1762348242525,-2500.0,0.00017803,3]
[393225722,1762348242535,-150.0,0.00017808,2]
[393225723,1762348242544,-2500.0,0.00017812,3]
[393225724,1762348242553,-150.0,0.0001782,2]
[393225725,1762348242563,-1499.59774,0.0001782,2]
[393225726,1762348242572,-5002.27644664,0.0001782,2]
[393225727,1762348242581,-175.40956515,0.0001782,2]
[393225728,1762348242591,-500.0,0.00017821,2]
[393225729,1762348242600,-1000.0,0.00017821,2]
[393225730,1762348242610,-1000.0,0.00017821,2]
[393225731,1762348242619,-618.2018509,0.00017821,2]
[393225732,1762348242628,-1000.0,0.00017821,2]
[393225733,1762348242638,-159.80438112,0.00017821,2]
[393225734,1762348242647,-1000.0,0.00017821,2]
[393225735,1762348242657,-500.71189777,0.00017821,2]
[393225736,1762348242666,-1000.0,0.00017821,2]
[393225737,1762348242675,-1000.0,0.00017821,2]
[393225738,1762348242688,-517.35927454,0.00017821,2]
[393225739,1762348242698,-1000.0,0.00017821,2]
[393225740,1762348242707,-1096.03695751,0.00017821,2]
[393225741,1762348242717,-500.74347932,0.00017821,2]
[393225742,1762348242726,-1021.19557885,0.00017821,2]
[393225744,1762348242739,-510.9280147,0.00017821,2]
[393225746,1762348242748,-500.0,0.00017821,2]
[393225747,1762348242758,-1000.0,0.00017821,2]
[393225748,1762348242767,-1000.0,0.00017821,2]
[393225749,1762348242776,-1000.0,0.00017821,2]
[393225750,1762348242785,-1000.0,0.00017821,2]
[393225752,1762348242795,-632.5089604,0.00017821,2]
[393225754,1762348242804,-1000.0,0.00017821,2]
[393225756,1762348242814,-2500.0,0.00017821,3]
[393225758,1762348242823,-596.49,0.00017821,2]
[393225760,1762348242832,-2500.0,0.0001783,3]
[393225762,1762348242842,-2235.001,0.00017833,2]
[393225764,1762348242851,-2500.0,0.00017838,3]
[393225766,1762348242860,-182.109,0.00017846,2]
[393225768,1762348242869,-500.0,0.00017846,2]
[393225770,1762348242879,-2500.0,0.00017847,3]
[393225771,1762348242889,-4327.0,0.00017856,2]
[393225772,1762348242898,-2500.0,0.00017856,3]
[393225773,1762348242907,-200.0,0.00017856,2]
[393225774,1762348242917,-2593.0,0.00017865,2]
[393225775,1762348242927,-2500.0,0.00017865,3]
[393225776,1762348242936,-1461.54753241,0.00017869,2]
[393225777,1762348242945,-2500.0,0.00017874,3]
[393225778,1762348242954,-2500.0,0.00017874,3]
[393225779,1762348242964,-574.0,0.00017875,2]
[393225780,1762348242973,-1595.0,0.00017875,2]
[393225781,1762348242983,-820.0,0.00017875,2]
[393225782,1762348242992,-812.0,0.00017875,2]
[393225783,1762348243002,-1272.0,0.00017875,2]
[393225784,1762348243012,-905.0,0.00017875,2]
[393225785,1762348243021,-1188.0,0.00017875,2]
[393225786,1762348243032,-6664.249,0.00017875,2]
[393225787,1762348243041,-2141.0,0.00017875,2]
[393225788,1762348243051,-6473.0,0.00017875,2]
[393225789,1762348243060,-560.927,0.00017875,2]
[393225790,1762348243070,-2500.0,0.00017882,3]
[393225791,1762348243080,-2500.0,0.00017882,3]
[393225792,1762348243091,-5000.0,0.00017888,2]
[393225793,1762348243242,-2500.0,0.00017891,3]
[393225794,1762348243252,-2500.0,0.00017891,3]
[393225795,1762348243262,-171.93567891,0.000179,2]
[393225796,1762348243271,-3079.01581495,0.000179,2]
[393225797,1762348243280,-2500.0,0.000179,3]
[393225798,1762348243289,-165.04661382,0.000179,2]
[393225799,1762348243298,-5002.27644664,0.000179,2]
[393225800,1762348243307,-1606.46033519,0.000179,2]
[393225801,1762348243315,-175.40956515,0.000179,2]
[393225802,1762348243324,-691.89711112,0.000179,2]
[393225803,1762348243333,-176.32783694,0.000179,2]
[393225804,1762348243343,-239.56426196,0.000179,2]
[393225805,1762348243356,-5448.52839387,0.000179,2]
[393225806,1762348243366,-150.0,0.00017954,2]
[393225807,1762348243375,-153.96997627,0.00017967,2]
[393225808,1762348243384,-1000.0,0.0001797,2]
[393225809,1762348243393,-500.0,0.0001797,2]
[393225810,1762348243402,-1000.0,0.0001797,2]
[393225811,1762348243421,-500.0,0.0001797,2]
[393225812,1762348243431,-1000.0,0.0001797,2]
[393225813,1762348243441,-500.0,0.0001797,2]
[393225814,1762348243451,-1000.0,0.0001797,2]
[393225815,1762348243460,-500.0,0.0001797,2]
[393225816,1762348243470,-1000.0,0.0001797,2]
[393225817,1762348243479,-500.0,0.0001797,2]
[393225818,1762348243489,-1000.0,0.0001797,2]
[393225819,1762348243500,-500.0,0.0001797,2]
[393225820,1762348243510,-500.0,0.0001797,2]
[393225821,1762348243520,-1000.0,0.0001797,2]
[393225822,1762348243531,-1000.0,0.0001797,2]
[393225823,1762348243540,-800.63275327,0.0001797,2]
[393225824,1762348243551,-1000.0,0.0001797,2]
[393225825,1762348243560,-1000.0,0.0001797,2]
[393225826,1762348243571,-1275.49060352,0.0001797,2]
[393225827,1762348243580,-500.0,0.00017971,2]
[393225828,1762348243590,-500.0,0.00017971,2]
[393225829,1762348243599,-500.0,0.00017971,2]
[393225830,1762348243609,-500.0,0.00017971,2]
[393225831,1762348243618,-500.0,0.00017971,2]
[393225832,1762348243627,-184.0,0.00017973,2]
[393225833,1762348243637,-276.73119563,0.00017973,2]
[393225834,1762348243647,-500.0,0.00017973,2]
[393225835,1762348243657,-500.0,0.00017973,2]
[393225836,1762348243667,-500.0,0.00017973,2]
[393225837,1762348243676,-500.0,0.00017973,2]
[393225838,1762348243685,-500.0,0.00017973,2]
[393225839,1762348243696,-500.0,0.00017973,2]
[393225840,1762348243705,-500.0,0.00017973,2]
[393225841,1762348243714,-251.93803896,0.00017973,2]
[393225842,1762348243723,-500.0,0.00017973,2]
[393225843,1762348243733,-216.03107045,0.00017973,2]
[393225844,1762348243745,-415.63,0.00017979,2]
[393225845,1762348243754,-415.63,0.00017979,2]
[393225846,1762348243763,-415.63,0.00017979,2]
[393225847,1762348243775,-415.63,0.00017979,2]
[393225848,1762348243784,-415.63,0.00017979,2]
[393225849,1762348243793,-415.63,0.00017979,2]
[393225850,1762348243803,-415.63,0.00017979,2]
[393225851,1762348243812,-415.63,0.00017979,2]
[393225852,1762348243822,-415.63,0.00017979,2]
[393225853,1762348243831,-415.63,0.00017979,2]
[393225854,1762348243842,-415.63,0.00017979,2]
[393225855,1762348243851,-177.29,0.00017979,2]
[393225856,1762348243861,-7167.2558281,0.0001798,2]
[393225857,1762348243870,-150.0,0.00017985,2]
[393225858,1762348243879,-11358.6886345,0.00017988,2]
[393225859,1762348243889,-345.769,0.00017988,2]
[393225860,1762348243899,-150.0,0.00017989,2]
[393225861,1762348243909,-217.3955486,0.00017989,2]
[393225862,1762348243920,-150.0,0.00017989,2]
[393225863,1762348243930,-150.0,0.00017989,2]
[393225864,1762348243940,-151.13904288,0.00017989,2]
[393225865,1762348243950,-150.0,0.00017989,2]
[393225866,1762348243960,-150.0,0.00017989,2]
[393225867,1762348243970,-150.0,0.00017989,2]
[393225868,1762348243980,-150.0,0.00017989,2]
[393225869,1762348243989,-150.0,0.00017989,2]
[393225870,1762348243999,-158.86102011,0.00017989,2]
[393225871,1762348244009,-150.0,0.00017989,2]
[393225872,1762348244020,-150.0,0.00017989,2]
[393225873,1762348244029,-150.0,0.00017989,2]
[393225874,1762348244039,-154.26057965,0.00017989,2]
[393225875,1762348244048,-500.0,0.00017989,2]
[393225876,1762348244057,-150.0,0.00017989,2]
[393225877,1762348244067,-150.0,0.00017989,2]
[393225878,1762348244076,-150.0,0.00017989,2]
[393225879,1762348244086,-150.0,0.00017989,2]
[393225880,1762348244096,-150.0,0.00017989,2]
[393225881,1762348244106,-150.0,0.00017989,2]
[393225882,1762348244115,-500.0,0.00017989,2]
[393225883,1762348244125,-500.0,0.00017989,2]
[393225884,1762348244135,-150.0,0.00017989,2]
[393225885,1762348244144,-150.0,0.00017989,2]
[393225886,1762348244154,-500.0,0.00017989,2]
[393225887,1762348244163,-150.0,0.00017989,2]
[393225888,1762348244177,-500.0,0.00017989,2]
[393225889,1762348244186,-466.0,0.00017989,2]
[393225890,1762348244197,-1806.38144404,0.0001799,2]
[393225891,1762348244207,-1806.38144404,0.0001799,2]
[393225892,1762348244217,-1806.38144404,0.0001799,2]
[393225893,1762348244228,-1471.1433556,0.00017992,2]
[393225894,1762348244237,-89204.5613963,0.00017992,2]
[393225895,1762348244247,-151.0,0.00017997,2]
[393225896,1762348244258,-399.20805107,0.00017998,2]
[393225897,1762348244267,-174.5087175,0.00017998,2]
[393225898,1762348244276,-500.0,0.00017998,2]
[393225899,1762348244285,-47051.8611147,0.00017999,2]
[393225900,1762348244295,-1003.1768,0.00017999,2]
[393225901,1762348244304,-404.76083682,0.00017999,2]
[393225902,1762348244314,-1000.0,0.00017999,2]
[393225903,1762348244337,-300.0,0.00017999,2]
[393225904,1762348244358,-500.0,0.00017999,2]
[393225905,1762348244367,-500.0,0.00017999,2]
[393225906,1762348244377,-561.95744653,0.00017999,2]
[393225907,1762348244387,-226.71413784,0.00017999,2]
[393225908,1762348244397,-500.0,0.00017999,2]
[393225909,1762348244406,-500.0,0.00017999,2]
[393225910,1762348244415,-266.17310046,0.00017999,2]
[393225911,1762348244425,-300.0,0.00017999,2]
[393225912,1762348244434,-666.0,0.00017999,2]
[393225913,1762348244443,-500.0,0.00017999,2]
[393225914,1762348244452,-500.0,0.00017999,2]
[393225915,1762348244462,-500.0,0.00017999,2]
[393225916,1762348244472,-500.0,0.00017999,2]
[393225917,1762348244481,-500.0,0.00017999,2]
[393225918,1762348244491,-500.0,0.00017999,2]
[393225919,1762348244500,-500.0,0.00017999,2]
[393225920,1762348244509,-589.41461623,0.00017999,2]
[393225921,1762348244519,-300.0,0.00017999,2]
[393225922,1762348244528,-666.0,0.00017999,2]
[393225923,1762348244537,-1000.0,0.00018,2]
[393225924,1762348244556,-1713896.94413884,0.00018,2]
[393225925,1762348244573,-423.11794635,0.00018,2]
[393225926,1762348244584,-4209.23353818,0.00018,2]
[393225927,1762348244599,-3404.98197448,0.00018,2]
[393225928,1762348244614,-539.0,0.00018,2]
[393225929,1762348244674,-2385.19,0.00017741,2]
[393225930,1762348244688,-1304.41851884,0.00017741,2]
[393225931,1762348244697,-854.76954616,0.00018,2]
[393225933,1762348246198,-324.20572068,0.000179,2]
[393225934,1762348246208,-101300.3624533,0.00018,2]
[393225935,1762348246308,-877385.87955423,0.00018,2]
[393225936,1762348246364,-6704.93266695,0.00018,2]
[393225937,1762348256595,500.0,0.00016647,2]
[393225941,1762348350342,500.0,0.00013001,2]
[393225947,1762348514735,500.0,0.00016356,2]
[393225948,1762348586179,500.0,0.00016356,2]
[393225950,1762348597568,584.99,0.00016413,2]
[393225954,1762348749272,759.16,0.000166,2]
[393225957,1762348860188,464.07,0.00013699,2]
[393225963,1762348972868,1000.0,0.00016201,2]
[393225969,1762349119175,719.84419432,9e-05,2]
[393225970,1762349128013,2751.0,0.00016227,2]
[393225975,1762349212928,1121.96653766,0.000162,5]
[393225976,1762349212951,155.89967372,0.000162,5]
[393225997,1762349312923,10000.01,0.00015,3]
[393225998,1762349312946,10000.01,0.00015,3]
[393225999,1762349312969,10000.01,0.00015,3]
[393226000,1762349312992,10000.01,0.00015,3]
[393226001,1762349313015,10000.01,0.00015,3]
[393226002,1762349313038,10000.01,0.00015,3]
[393226003,1762349313062,10000.01,0.00015,3]
[393226004,1762349313084,6128.17593758,0.00015,3]
[393226013,1762349431938,-209.61201441,0.00016888,2]
[393226014,1762349431948,-157.0,0.00016888,2]
[393226015,1762349431958,-300.0,0.00016904,2]
[393226016,1762349431968,-300.0,0.0001692,2]
[393226017,1762349431977,-195.0,0.00016921,2]
[393226018,1762349431987,-133.70250767,0.00016926,2]
[393226019,1762349431998,-32.95749233,0.00016926,2]
[393226020,1762349432007,-195.0,0.00016941,2]
[393226021,1762349432016,-300.0,0.00016987,2]
[393226022,1762349432027,-488.88211757,0.00016988,2]
[393226023,1762349432039,-174.0949034,0.00016988,2]
[393226024,1762349432048,-1200.0,0.00016988,2]
[393226025,1762349432057,-300.0,0.00016988,2]
[393226026,1762349432067,-550.0,0.00016988,2]
[393226027,1762349432076,-745.12,0.00016989,2]
[393226028,1762349432086,-193.16849948,0.00016989,2]
[393226029,1762349432098,-500.0,0.00016989,2]
[393226030,1762349432107,-495.51437203,0.00016989,2]
[393226031,1762349432116,-169.54846975,0.00016989,2]
[393226032,1762349432125,-500.0,0.00016989,2]
[393226033,1762349432135,-500.0,0.00016989,2]
[393226034,1762349432144,-500.0,0.00016989,2]
[393226035,1762349432153,-500.0,0.00016989,2]
[393226036,1762349432163,-26.67117929,0.00016989,2]
[393226037,1762349432176,-473.32882071,0.00016989,2]
[393226039,1762349432185,-326.67117929,0.00016989,2]
[393226041,1762349432197,-173.32882071,0.00016989,2]
[393226043,1762349432208,-500.0,0.00016989,2]
[393226045,1762349432222,-500.0,0.00016989,2]
[393226046,1762349432231,-500.0,0.00016989,2]
[393226048,1762349432241,-181.84159425,0.00016989,2]
[393226050,1762349432253,-318.15840575,0.00016989,2]
[393226052,1762349432262,-328.46177499,0.00016989,2]
[393226055,1762349432277,-126.73089921,0.00016989,2]
[393226057,1762349432287,-262.08825317,0.00016989,2]
[393226080,1762349437875,-237.91174683,0.00016989,2]
[393226081,1762349437885,-500.0,0.00016989,2]
[393226082,1762349437894,-500.0,0.00016989,2]
[393226083,1762349437904,-500.0,0.00016989,2]
[393226084,1762349437914,-22494.56825318,0.0001699,2]
[393226085,1762349437987,-5552.51701183,0.0001699,2]
[393226086,1762349437998,-500.99999993,0.0001699,2]
[393226091,1762349439968,-11430.0,0.0001699,2]
[393226092,1762349439980,-15499.99999998,0.0001699,2]
[393226093,1762349439991,-800.49634291,0.0001699,2]
[393226094,1762349440004,-298.51436949,0.0001699,2]
[393226095,1762349440087,-684.59111664,0.0001699,2]
[393226096,1762349440099,-3547.5,0.0001699,2]
[393226097,1762349440111,-70347.74418966,0.0001699,2]
[393226098,1762349440121,-500.0,0.00017,2]
[393226099,1762349440132,-500.0,0.00017,5]
[393226100,1762349440142,-541.13335366,0.00017,2]
[393226101,1762349440151,-9424.76572202,0.00017,2]
[393226102,1762349440163,-211.19972172,0.00017023,2]
[393226103,1762349440174,-2500.0,0.00017073,2]
[393226104,1762349440184,-233.18794437,0.00017073,2]
[393226105,1762349440193,-4434.22142215,0.00017073,2]
[393226106,1762349440206,-9424.76572193,0.000171,2]
[393226107,1762349440221,-1000.0,0.000171,6]
[393226108,1762349440231,-8336.3084001,0.00017149,2]
[393226109,1762349440241,-200.0,0.00017162,2]
[393226110,1762349440252,-151.0,0.00017162,2]
[393226111,1762349440262,-151.0,0.00017162,2]
[393226113,1762349440272,-151.0,0.00017162,2]
[393226114,1762349440282,-151.0,0.00017162,2]
[393226115,1762349440293,-151.0,0.00017162,2]
[393226116,1762349440303,-151.0,0.00017162,2]
[393226117,1762349440312,-151.0,0.00017162,2]
[393226118,1762349440322,-151.0,0.00017162,2]
[393226119,1762349440331,-151.0,0.00017162,2]
[393226120,1762349440340,-151.0,0.00017162,2]
[393226121,1762349440349,-151.0,0.00017162,2]
[393226122,1762349440358,-151.0,0.00017162,2]
[393226123,1762349440598,-151.0,0.00017162,2]
[393226124,1762349440607,-151.0,0.00017162,2]
[393226125,1762349440616,-151.0,0.00017162,2]
[393226126,1762349440626,-151.0,0.00017162,2]
[393226127,1762349440634,-151.0,0.00017162,2]
[393226128,1762349440644,-500.0,0.00017162,2]
[393226129,1762349440653,-151.0,0.00017162,2]
[393226130,1762349440662,-500.0,0.00017162,2]
[393226131,1762349440671,-151.0,0.00017162,2]
[393226132,1762349440682,-500.0,0.00017162,2]
[393226133,1762349440691,-151.0,0.00017162,2]
[393226134,1762349440700,-151.0,0.00017162,2]
[393226135,1762349440709,-151.0,0.00017162,2]
[393226136,1762349440718,-500.0,0.00017162,2]
[393226137,1762349440727,-151.0,0.00017162,2]
[393226138,1762349440737,-500.0,0.00017162,2]
[393226139,1762349440746,-151.0,0.00017162,2]
[393226140,1762349440755,-500.0,0.00017162,2]
[393226141,1762349440764,-151.0,0.00017162,2]
[393226142,1762349440773,-151.0,0.00017162,2]
[393226143,1762349440782,-500.0,0.00017162,2]
[393226144,1762349440792,-151.0,0.00017162,2]
[393226145,1762349440801,-151.0,0.00017162,2]
[393226146,1762349440810,-500.0,0.00017162,2]
[393226147,1762349440819,-151.0,0.00017162,2]
[393226148,1762349440828,-151.0,0.00017162,2]
[393226149,1762349440838,-151.0,0.00017162,2]
[393226150,1762349440847,-151.0,0.00017162,2]
[393226151,1762349440857,-500.0,0.00017162,2]
[393226152,1762349440866,-500.0,0.00017162,2]
[393226153,1762349440876,-151.0,0.00017162,2]
[393226154,1762349440886,-151.0,0.00017162,2]
[393226155,1762349440895,-500.0,0.00017162,2]
[393226156,1762349440905,-151.0,0.00017162,2]
[393226157,1762349440917,-151.0,0.00017162,2]
[393226158,1762349440928,-151.0,0.00017162,2]
[393226159,1762349440939,-151.0,0.00017162,2]
[393226160,1762349440949,-151.0,0.00017162,2]
[393226161,1762349440958,-151.0,0.00017162,2]
[393226162,1762349440969,-250.0,0.00017162,2]
[393226163,1762349440980,-370.89842566,0.00017162,2]
[393226164,1762349440990,-322.6107,0.00017162,2]
[393226165,1762349441000,-163.3,0.00017163,2]
[393226166,1762349441010,-233.18794429,0.00017165,2]
[393226167,1762349441020,-4434.22142215,0.00017165,2]
[393226168,1762349441029,-151.0,0.0001717,2]
[393226169,1762349441039,-337.79573883,0.00017172,2]
[393226170,1762349441048,-231.15109893,0.00017172,2]
[393226171,1762349441057,-500.0,0.00017172,2]
[393226172,1762349441067,-500.0,0.00017172,2]
[393226173,1762349441076,-488.9403355,0.00017172,2]
[393226174,1762349441086,-500.0,0.00017172,2]
[393226175,1762349441096,-641.3407631,0.00017172,2]
[393226176,1762349441105,-500.0,0.00017172,2]
[393226177,1762349441115,-500.0,0.00017172,2]
[393226178,1762349441124,-500.0,0.00017172,2]
[393226179,1762349441133,-500.0,0.00017172,2]
[393226180,1762349441142,-425.64626727,0.00017172,2]
[393226181,1762349441153,-500.0,0.00017172,2]
[393226182,1762349441162,-500.0,0.00017172,2]
[393226183,1762349441172,-500.0,0.00017172,2]
[393226184,1762349441182,-500.0,0.00017172,2]
[393226185,1762349441191,-500.0,0.00017172,2]
[393226186,1762349441200,-500.0,0.00017172,2]
[393226187,1762349441210,-420000.0,0.00017173,2]
[393226188,1762349441223,-1000.0,0.00017173,2]
[393226189,1762349441232,-618.2018509,0.00017173,2]
[393226190,1762349441241,-500.0,0.00017173,2]
[393226191,1762349441251,-500.0,0.00017173,2]
[393226192,1762349441260,-500.0,0.00017173,2]
[393226193,1762349441269,-500.0,0.00017173,2]
[393226194,1762349441278,-500.0,0.00017173,2]
[393226195,1762349441287,-150.0,0.000172,2]
[393226196,1762349441296,-415.63,0.000172,2]
[393226197,1762349441305,-2000.0,0.000172,6]
[393226198,1762349441314,-233.18794429,0.00017257,2]
[393226199,1762349441324,-4434.22142215,0.00017257,2]
[393226200,1762349441333,-745.12,0.00017263,2]
[393226201,1762349441342,-500.0,0.00017283,2]
[393226202,1762349441351,-404.76083682,0.00017283,2]
[393226203,1762349441360,-500.0,0.00017283,2]
[393226204,1762349441370,-500.0,0.00017283,2]
[393226205,1762349441379,-500.0,0.00017298,2]
[393226206,1762349441388,-477.03,0.000173,2]
[393226207,1762349441396,-477.03,0.000173,2]
[393226208,1762349441406,-953.86,0.000173,2]
[393226209,1762349441414,-477.03,0.000173,2]
[393226210,1762349441425,-477.03,0.000173,2]
[393226211,1762349441435,-477.03,0.000173,2]
[393226212,1762349441444,-477.03,0.000173,2]
[393226213,1762349441453,-150.0,0.000173,2]
[393226214,1762349441462,-415.63,0.000173,2]
[393226215,1762349441471,-954.06,0.000173,2]
[393226216,1762349441480,-415.63,0.000173,2]
[393226217,1762349441489,-150.0,0.000173,2]
[393226218,1762349441499,-415.63,0.000173,2]
[393226219,1762349441507,-477.03,0.000173,2]
[393226220,1762349441516,-415.63,0.000173,2]
[393226221,1762349441526,-150.0,0.000173,2]
[393226222,1762349441535,-150.0,0.000173,2]
[393226223,1762349441544,-415.63,0.000173,2]
[393226224,1762349441554,-3100.0,0.000173,6]
[393226225,1762349441562,-233.18794429,0.00017349,2]
[393226226,1762349441571,-4434.22142215,0.00017349,2]
[393226227,1762349441580,-546.02,0.00017386,2]
[393226228,1762349441589,-415.63,0.000174,2]
[393226229,1762349441598,-4100.0,0.000174,6]
[393226230,1762349441608,-233.18794429,0.00017441,2]
[393226231,1762349441618,-4434.22142215,0.00017441,2]
[393226232,1762349441627,-5888.0,0.00017441,2]
[393226233,1762349441637,-601.36516946,0.000175,2]
[393226234,1762349441646,-5000.0,0.000175,2]
[393226235,1762349441656,-535.48677841,0.000175,2]
[393226236,1762349441665,-5200.0,0.000175,6]
[393226237,1762349441676,-500.0,0.00017507,2]
[393226238,1762349441686,-171.93567891,0.00017524,2]
[393226239,1762349441695,-233.18794429,0.00017532,2]
[393226240,1762349441704,-4434.22142215,0.00017532,2]
[393226241,1762349441713,-745.12,0.00017537,2]
[393226242,1762349441722,-601.36516942,0.00017567,2]
[393226243,1762349441731,-500.0,0.00017573,2]
[393226244,1762349441741,-500.71189777,0.00017573,2]
[393226245,1762349441752,-500.0,0.00017573,2]
[393226246,1762349441762,-500.0,0.00017573,2]
[393226247,1762349441771,-251.93803896,0.00017573,2]
[393226248,1762349441780,-500.0,0.00017573,2]
[393226249,1762349441789,-500.0,0.00017573,2]
[393226250,1762349441798,-216.03107045,0.00017573,2]
[393226251,1762349441808,-500.0,0.00017573,2]
[393226252,1762349441818,-500.0,0.00017573,2]
[393226253,1762349441827,-500.0,0.00017573,2]
[393226254,1762349441836,-510.9280147,0.00017573,2]
[393226255,1762349441846,-500.0,0.00017573,2]
[393226256,1762349441857,-500.74347932,0.00017573,2]
[393226257,1762349441866,-500.0,0.00017573,2]
[393226258,1762349441875,-500.0,0.00017573,2]
[393226259,1762349441885,-500.0,0.00017573,2]
[393226260,1762349441895,-500.0,0.00017573,2]
[393226261,1762349441905,-500.0,0.00017573,2]
[393226262,1762349441914,-500.0,0.00017573,2]
[393226263,1762349441923,-500.0,0.00017573,2]
[393226264,1762349441933,-500.0,0.00017573,2]
[393226265,1762349441942,-632.5089604,0.00017573,2]
[393226266,1762349441951,-12858.94622534,0.00017584,2]
[393226267,1762349441960,-163.3,0.0001759,2]
[393226268,1762349441969,-163.3,0.0001759,2]
[393226269,1762349441979,-163.3,0.0001759,2]
[393226270,1762349441988,-163.3,0.0001759,2]
[393226271,1762349441998,-1806.38144404,0.0001759,2]
[393226272,1762349442007,-151.0,0.00017597,2]
[393226273,1762349442016,-151.0,0.00017597,2]
[393226274,1762349442025,-151.0,0.00017597,2]